fUST/lending_fUST_20250514
["ID","MTS","AMOUNT","RATE_DAILY","PERIOD"]
[361056038,1747222238336,-3994.22159376,0.00015676,2]
[361056040,1747222238345,-457.26,0.00015949,2]
[361056042,1747222238354,-206.04,0.00015949,2]
[361056044,1747222238364,-464.10460778,0.00016,2]
[361056046,1747222238373,-464.10460778,0.000169,2]
[361056048,1747222238382,-301.06381258,0.000169,2]
[361056050,1747222238392,-201.92219847,0.000169,2]
[361056052,1747222238401,-500.0,0.00016973,2]
[361056054,1747222238411,-500.0,0.00016973,2]
[361056056,1747222238420,-302.03733389,0.00016973,2]
[361056058,1747222238436,-197.96266611,0.00016973,2]
[361056060,1747222238445,-500.0,0.00016973,2]
[361056062,1747222238455,-504.33442312,0.00016973,2]
[361056064,1747222238464,-500.0,0.00016973,2]
[361056066,1747222238474,-500.0,0.00016973,2]
[361056068,1747222238483,-500.0,0.00016973,2]
[361056070,1747222238493,-500.0,0.00016973,2]
[361056072,1747222238502,-400.0,0.00016996,2]
[361056074,1747222238511,-287.00293327,0.00016999,2]
[361056076,1747222238527,-112.99706673,0.00016999,2]
[361056079,1747222238536,-400.0,0.00016999,2]
[361056081,1747222238546,-4357.1856714,0.00017,3]
[361056083,1747222238559,-18542.00318056,0.00017,3]
[361056270,1747222240588,-1260.87,0.00017,3]
[361056964,1747223114322,1000.0,0.00014,30]
[361056965,1747223114578,1000.0,0.00014,30]
[361056966,1747223115328,1000.0,0.00014,30]
[361056967,1747223115608,1000.0,0.00014,30]
[361056968,1747223115870,1000.0,0.00014,30]
[361056969,1747223116126,1000.0,0.00014,30]
[361056970,1747223116386,1000.0,0.00014,30]
[361056971,1747223116647,1000.0,0.00014,30]
[361056972,1747223116901,1000.0,0.00014,30]
[361056973,1747223117167,1000.0,0.00014,30]
[361057021,1747223432615,-454.774717,0.00013699,2]
[361057022,1747223432625,-300.0,0.00014443,2]
[361057023,1747223432635,-300.0,0.00014443,2]
[361057025,1747223432644,-1200.0,0.00014443,2]
[361057027,1747223432653,-66119.1744182,0.00014444,2]
[361057029,1747223432663,-74076.67552217,0.00014444,3]
[361057032,1747223432674,-4395.3340464,0.00014444,3]
[361057034,1747223432686,-2600.0,0.00014444,3]
[361057036,1747223432697,-2750.0,0.00014444,3]
[361057038,1747223432707,-4450.0,0.00014444,3]
[361057041,1747223432721,-14788.55376542,0.00014444,3]
[361057569,1747223438533,-1809.83187469,0.00014444,3]
[361057581,1747223438639,-531.88721493,0.00014444,3]
[361057583,1747223438648,-1435.78988996,0.00014669,2]
[361057898,1747223443696,-191.9538759,0.00014443,2]
[361057900,1747223443706,-669.70237905,0.00014669,2]
[361058195,1747223446697,-482.7826615,0.00014443,2]
[361059944,1747224315530,-201.01492869,0.00013292,2]
[361059953,1747224339696,-211.99249354,0.00013292,2]
[361059954,1747224342911,-168.19200212,0.00013292,2]
[361059993,1747224631829,-240.0,0.0001306,2]
[361059996,1747224631843,-300.0,0.0001306,2]
[361059998,1747224631853,-15136.7709671,0.00013061,2]
[361059999,1747224631863,-50000.0,0.00013291,2]
[361060001,1747224631872,-500.0,0.00013291,2]
[361060003,1747224631882,-500.0,0.00013291,2]
[361060005,1747224631891,-500.0,0.00013291,2]
[361060007,1747224631900,-380.0,0.00013291,2]
[361060009,1747224631909,-631.96628282,0.00013291,2]
[361060011,1747224631919,-500.0,0.00013291,2]
[361060013,1747224631928,-500.0,0.00013291,2]
[361060015,1747224631938,-512.00756795,0.00013291,2]
[361060017,1747224631948,-232.47529432,0.00013291,2]
[361060019,1747224631958,-7512.83755545,0.00013292,2]
[361060021,1747224631968,-724.65396156,0.00013599,2]
[361060023,1747224631977,-610.9314939,0.00013643,2]
[361060025,1747224631987,-500.0,0.00013698,2]
[361060026,1747224631996,-481.69763156,0.00013698,2]
[361060027,1747224632005,-432.035981,0.00013699,2]
[361060028,1747224632014,-152.0,0.00014093,2]
[361060029,1747224632024,-458.16239508,0.00014217,2]
[361060030,1747224632033,-290.17058503,0.00014221,2]
[361060031,1747224632043,-400.0,0.00014315,2]
[361060032,1747224632053,-633.34998742,0.00014319,2]
[361060033,1747224632063,-400.0,0.00014319,2]
[361060034,1747224632073,-400.0,0.00014319,2]
[361060035,1747224632083,-400.0,0.00014319,2]
[361060036,1747224632092,-400.0,0.00014319,2]
[361060037,1747224632102,-400.0,0.00014319,2]
[361060038,1747224632112,-403.49,0.00014319,2]
[361060039,1747224632121,-400.0,0.00014319,2]
[361060040,1747224632130,-400.0,0.00014319,2]
[361060041,1747224632140,-400.0,0.00014319,2]
[361060042,1747224632150,-400.0,0.00014319,2]
[361060043,1747224632160,-400.0,0.00014319,2]
[361060044,1747224632169,-400.0,0.00014319,2]
[361060045,1747224632179,-400.0,0.00014319,2]
[361060046,1747224632189,-400.0,0.00014319,2]
[361060047,1747224632199,-400.0,0.00014319,2]
[361060048,1747224632209,-400.0,0.00014319,2]
[361060049,1747224632220,-400.0,0.00014319,2]
[361060050,1747224632230,-400.0,0.00014319,2]
[361060051,1747224632241,-400.0,0.00014319,2]
[361060052,1747224632250,-400.0,0.00014319,2]
[361060053,1747224632260,-400.0,0.00014319,2]
[361060054,1747224632270,-484.84,0.00014319,2]
[361060055,1747224632280,-521.08,0.00014319,2]
[361060056,1747224632290,-400.0,0.00014319,2]
[361060057,1747224632307,-400.0,0.00014319,2]
[361060058,1747224632317,-400.0,0.00014319,2]
[361060059,1747224632327,-400.0,0.00014319,2]
[361060060,1747224632337,-400.0,0.00014319,2]
[361060061,1747224632347,-400.0,0.00014319,2]
[361060062,1747224632357,-549.47,0.00014319,2]
[361060063,1747224632367,-400.0,0.00014319,2]
[361060064,1747224632378,-447.03,0.00014319,2]
[361060065,1747224632389,-212.95398784,0.00014319,2]
[361060066,1747224632399,-400.0,0.00014319,2]
[361060067,1747224632409,-400.0,0.00014319,2]
[361060068,1747224632418,-400.0,0.00014319,2]
[361060069,1747224632428,-400.0,0.00014319,2]
[361060070,1747224632438,-400.0,0.00014319,2]
[361060071,1747224632448,-400.0,0.00014319,2]
[361060072,1747224632458,-400.0,0.00014319,2]
[361060073,1747224632468,-400.0,0.00014319,2]
[361060074,1747224632478,-429.48,0.00014319,2]
[361060075,1747224632488,-400.0,0.00014319,2]
[361060076,1747224632498,-400.0,0.00014319,2]
[361060077,1747224632508,-400.0,0.00014319,2]
[361060078,1747224632518,-400.0,0.00014319,2]
[361060079,1747224632527,-400.0,0.00014319,2]
[361060080,1747224632538,-400.0,0.00014319,2]
[361060081,1747224632548,-400.0,0.00014319,2]
[361060082,1747224632560,-400.0,0.00014319,2]
[361060083,1747224632570,-400.0,0.00014319,2]
[361060084,1747224632580,-400.0,0.00014319,2]
[361060085,1747224632590,-400.0,0.00014319,2]
[361060086,1747224632601,-400.0,0.00014319,2]
[361060087,1747224632611,-400.0,0.00014319,2]
[361060088,1747224632622,-496.6,0.00014319,2]
[361060089,1747224632632,-400.0,0.00014319,2]
[361060090,1747224632641,-400.0,0.00014319,2]
[361060091,1747224632651,-400.0,0.00014319,2]
[361060092,1747224632661,-547.66,0.00014319,2]
[361060093,1747224632671,-400.0,0.00014319,2]
[361060094,1747224632681,-290.1,0.00014319,2]
[361060095,1747224632691,-400.0,0.00014319,2]
[361060096,1747224632701,-400.0,0.00014319,2]
[361060097,1747224632710,-400.0,0.00014319,2]
[361060098,1747224632720,-400.0,0.00014319,2]
[361060099,1747224632730,-400.0,0.00014319,2]
[361060100,1747224632740,-461.23,0.00014319,2]
[361060101,1747224632750,-400.0,0.00014319,2]
[361060102,1747224632760,-400.0,0.00014319,2]
[361060103,1747224632771,-400.0,0.00014319,2]
[361060104,1747224632781,-400.0,0.00014319,2]
[361060105,1747224632791,-400.0,0.00014319,2]
[361060106,1747224632801,-400.0,0.00014319,2]
[361060107,1747224632815,-400.0,0.00014319,2]
[361060108,1747224632826,-400.0,0.00014319,2]
[361060109,1747224632836,-402.2681485,0.00014319,2]
[361060110,1747224632846,-400.0,0.00014319,2]
[361060111,1747224632856,-400.0,0.00014319,2]
[361060112,1747224632867,-400.0,0.00014319,2]
[361060113,1747224632877,-400.0,0.00014319,2]
[361060114,1747224632887,-400.0,0.00014319,2]
[361060115,1747224632897,-400.0,0.00014319,2]
[361060116,1747224632907,-400.0,0.00014319,2]
[361060117,1747224632917,-400.0,0.00014319,2]
[361060118,1747224632926,-400.0,0.00014319,2]
[361060119,1747224632936,-400.0,0.00014319,2]
[361060120,1747224632946,-400.0,0.00014319,2]
[361060121,1747224632955,-297.03404986,0.00014319,2]
[361060122,1747224632965,-400.0,0.00014319,2]
[361060123,1747224632975,-400.0,0.00014319,2]
[361060124,1747224632984,-400.0,0.00014319,2]
[361060125,1747224632994,-400.0,0.00014319,2]
[361060126,1747224633004,-400.0,0.00014319,2]
[361060127,1747224633014,-272.01597013,0.00014319,2]
[361060128,1747224633024,-400.0,0.00014319,2]
[361060129,1747224633034,-400.0,0.00014319,2]
[361060130,1747224633045,-400.0,0.00014319,2]
[361060131,1747224633058,-400.0,0.00014319,2]
[361060132,1747224633069,-400.0,0.00014319,2]
[361060133,1747224633079,-400.0,0.00014319,2]
[361060134,1747224633088,-400.0,0.00014319,2]
[361060135,1747224633098,-400.0,0.00014319,2]
[361060136,1747224633108,-400.0,0.00014319,2]
[361060137,1747224633119,-403.61,0.00014319,2]
[361060138,1747224633129,-400.0,0.00014319,2]
[361060139,1747224633139,-400.0,0.00014319,2]
[361060140,1747224633149,-400.0,0.00014319,2]
[361060141,1747224633158,-401.16121015,0.00014319,2]
[361060142,1747224633168,-400.0,0.00014319,2]
[361060143,1747224633178,-400.0,0.00014319,2]
[361060144,1747224633187,-400.0,0.00014319,2]
[361060145,1747224633197,-400.0,0.00014319,2]
[361060146,1747224633213,-400.9941933,0.00014319,2]
[361060147,1747224633227,-400.0,0.00014319,2]
[361060148,1747224633238,-400.0,0.00014319,2]
[361060149,1747224633248,-400.0,0.00014319,2]
[361060150,1747224633258,-400.0,0.00014319,2]
[361060151,1747224633268,-400.0,0.00014319,2]
[361060152,1747224633278,-417.24,0.00014319,2]
[361060153,1747224633288,-400.0,0.00014319,2]
[361060154,1747224633515,-400.0,0.00014319,2]
[361060155,1747224633526,-400.0,0.00014319,2]
[361060156,1747224633536,-400.0,0.00014319,2]
[361060157,1747224633547,-400.0,0.00014319,2]
[361060158,1747224633560,-436.71,0.00014319,2]
[361060159,1747224633570,-173.26144266,0.00014319,2]
[361060160,1747224633580,-400.0,0.00014319,2]
[361060161,1747224633590,-400.0,0.00014319,2]
[361060162,1747224633600,-400.0,0.00014319,2]
[361060163,1747224633610,-400.0,0.00014319,2]
[361060164,1747224633620,-400.0,0.00014319,2]
[361060165,1747224633630,-400.0,0.00014319,2]
[361060166,1747224633641,-400.0,0.00014319,2]
[361060167,1747224633651,-400.0,0.00014319,2]
[361060168,1747224633661,-512.06980326,0.00014319,2]
[361060169,1747224633671,-400.0,0.00014319,2]
[361060170,1747224633681,-400.0,0.00014319,2]
[361060171,1747224633690,-401.43375516,0.00014319,2]
[361060172,1747224633700,-400.0,0.00014319,2]
[361060173,1747224633710,-503.56931981,0.00014319,2]
[361060174,1747224633720,-400.0,0.00014319,2]
[361060175,1747224633730,-400.0,0.00014319,2]
[361060176,1747224633740,-400.0,0.00014319,2]
[361060177,1747224633750,-400.0,0.00014319,2]
[361060178,1747224633761,-400.0,0.00014319,2]
[361060179,1747224633772,-400.0,0.00014319,2]
[361060180,1747224633782,-502.44,0.00014319,2]
[361060181,1747224633793,-504.86360552,0.00014319,2]
[361060182,1747224633803,-400.0,0.00014319,2]
[361060183,1747224633814,-400.0,0.00014319,2]
[361060184,1747224633824,-400.0,0.00014319,2]
[361060185,1747224633834,-400.0,0.00014319,2]
[361060186,1747224633843,-400.0,0.00014319,2]
[361060187,1747224633853,-400.0,0.00014319,2]
[361060188,1747224633862,-400.0,0.00014319,2]
[361060189,1747224633872,-400.0,0.00014319,2]
[361060190,1747224633881,-401.90655717,0.00014319,2]
[361060191,1747224633891,-400.0,0.00014319,2]
[361060192,1747224633900,-400.0,0.00014319,2]
[361060193,1747224633910,-400.0,0.00014319,2]
[361060194,1747224633921,-400.0,0.00014319,2]
[361060195,1747224633930,-400.0,0.00014319,2]
[361060196,1747224633940,-504.48,0.00014319,2]
[361060197,1747224633950,-400.0,0.00014319,2]
[361060198,1747224633960,-400.0,0.00014319,2]
[361060199,1747224633970,-400.0,0.00014319,2]
[361060200,1747224633980,-400.0,0.00014319,2]
[361060201,1747224633989,-400.0,0.00014319,2]
[361060202,1747224633999,-400.0,0.00014319,2]
[361060203,1747224634008,-486.52986263,0.00014319,2]
[361060204,1747224634017,-400.0,0.00014319,2]
[361060205,1747224634027,-400.0,0.00014319,2]
[361060206,1747224634037,-400.0,0.0001432,2]
[361060207,1747224634047,-400.0,0.0001432,2]
[361060208,1747224634060,-17852.13559652,0.00014321,2]
[361060256,1747224637787,-400.0,0.00013698,2]
[361060258,1747224637798,-455.44,0.00013972,2]
[361060260,1747224637808,-15207.45161258,0.00014321,2]
[361060262,1747224637818,-120398.12385305,0.00014321,3]
[361060264,1747224637828,-151.0,0.00014321,2]
[361060266,1747224637837,-151.373288,0.00014321,2]
[361060268,1747224637846,-151.0,0.00014321,2]
[361060270,1747224637856,-151.930088,0.00014321,2]
[361060271,1747224637866,-151.0,0.00014321,2]
[361060272,1747224637875,-181.705882,0.00014321,2]
[361060273,1747224637884,-181.705882,0.00014321,2]
[361060274,1747224637893,-151.0,0.00014321,2]
[361060275,1747224637903,-212.21045333,0.00014321,3]
[361060277,1747224637913,-151.0,0.00014321,2]
[361060279,1747224637922,-151.0,0.00014321,2]
[361060281,1747224637931,-151.0,0.00014321,2]
[361060283,1747224637941,-151.380413,0.00014321,2]
[361060285,1747224637950,-420.0,0.00014322,2]
[361060287,1747224637960,-643.55515777,0.00014373,2]
[361060289,1747224637969,-500.0,0.00014373,2]
[361060291,1747224637979,-291.93,0.00014593,2]
[361060293,1747224637989,-230.4,0.00014593,2]
[361060295,1747224637999,-400.0,0.00014593,2]
[361060297,1747224638008,-270.86,0.00014593,2]
[361060299,1747224638018,-416.64,0.00014593,2]
[361060301,1747224638028,-270.22,0.00014593,2]
[361060302,1747224638037,-221.85,0.00014593,2]
[361060304,1747224638046,-358.37,0.00014593,2]
[361060306,1747224638056,-217.46,0.00014593,2]
[361060308,1747224638070,-438.94,0.00014593,2]
[361060310,1747224638079,-400.0,0.00014593,2]
[361060312,1747224638088,-277.36,0.00014593,2]
[361060314,1747224638098,-371.64,0.00014593,2]
[361060316,1747224638107,-344.98,0.00014593,2]
[361060318,1747224638117,-400.0,0.00014593,2]
[361060320,1747224638127,-465.11,0.00014593,2]
[361060322,1747224638137,-500.0,0.00014593,2]
[361060324,1747224638147,-377.05,0.00014593,2]
[361060326,1747224638156,-400.0,0.00014593,2]
[361060328,1747224638166,-400.0,0.00014593,2]
[361060330,1747224638176,-331.98,0.00014593,2]
[361060332,1747224638185,-400.0,0.00014593,2]
[361060334,1747224638194,-400.0,0.00014593,2]
[361060337,1747224638205,-400.0,0.00014593,2]
[361060338,1747224638214,-400.0,0.00014593,2]
[361060340,1747224638223,-400.0,0.00014593,2]
[361060343,1747224638233,-200.67,0.00014593,2]
[361060345,1747224638243,-244.62,0.00014593,2]
[361060347,1747224638252,-400.0,0.00014593,2]
[361060349,1747224638262,-233.0,0.00014593,2]
[361060351,1747224638273,-202.18,0.00014593,2]
[361060353,1747224638282,-303.83,0.00014593,2]
[361060355,1747224638296,-400.0,0.00014593,2]
[361060356,1747224638308,-400.0,0.00014593,2]
[361060358,1747224638320,-400.0,0.00014593,2]
[361060360,1747224638330,-400.0,0.00014593,2]
[361060361,1747224638340,-424.58,0.00014593,2]
[361060363,1747224638351,-262.57,0.00014593,2]
[361060366,1747224638361,-358.46,0.00014593,2]
[361060367,1747224638371,-199.5,0.00014593,2]
[361060369,1747224638381,-268.88,0.00014593,2]
[361060371,1747224638391,-284.26,0.00014593,2]
[361060373,1747224638401,-374.58,0.00014593,2]
[361060376,1747224638410,-400.0,0.00014669,2]
[361060377,1747224638419,-400.0,0.00014669,2]
[361060379,1747224638429,-400.0,0.00014669,2]
[361060381,1747224638438,-400.0,0.00014669,2]
[361060383,1747224638447,-400.0,0.00014669,2]
[361060385,1747224638457,-400.0,0.00014669,2]
[361060387,1747224638467,-400.0,0.00014669,2]
[361060389,1747224638478,-400.0,0.00014669,2]
[361060391,1747224638488,-400.0,0.00014669,2]
[361060393,1747224638498,-400.0,0.00014669,2]
[361060395,1747224638507,-400.0,0.00014669,2]
[361060397,1747224638516,-400.0,0.00014669,2]
[361060399,1747224638526,-400.0,0.00014669,2]
[361060401,1747224638535,-400.0,0.00014669,2]
[361060403,1747224638545,-400.0,0.00014669,2]
[361060405,1747224638555,-400.0,0.00014669,2]
[361060407,1747224638565,-400.0,0.00014669,2]
[361060409,1747224638575,-400.0,0.00014669,2]
[361060411,1747224638584,-151.0,0.00014669,2]
[361060413,1747224638594,-400.0,0.00014669,2]
[361060415,1747224638603,-400.0,0.00014669,2]
[361060417,1747224638613,-151.0,0.00014669,2]
[361060420,1747224638622,-400.0,0.00014669,2]
[361060422,1747224638641,-400.0,0.00014669,2]
[361060425,1747224638654,-491.41,0.00014669,2]
[361060427,1747224638667,-151.0,0.00014669,2]
[361060429,1747224638680,-400.0,0.00014669,2]
[361060432,1747224638692,-151.189559,0.00014669,2]
[361060434,1747224638704,-400.0,0.00014669,2]
[361060436,1747224638716,-151.0,0.00014669,2]
[361060438,1747224638727,-405.27163844,0.00014669,2]
[361060440,1747224638737,-181.705882,0.00014669,2]
[361060443,1747224638748,-151.0,0.00014669,2]
[361060445,1747224638761,-181.705882,0.00014669,2]
[361060447,1747224638771,-151.0,0.00014669,2]
[361060449,1747224638782,-400.0,0.00014669,2]
[361060451,1747224638793,-153.129764,0.00014669,2]
[361060453,1747224638804,-151.0,0.00014669,2]
[361060455,1747224638817,-151.0,0.00014669,2]
[361060458,1747224638830,-151.0,0.00014669,2]
[361060460,1747224638841,-151.0,0.00014669,2]
[361060462,1747224638852,-400.0,0.00014669,2]
[361060464,1747224638866,-400.0,0.00014669,2]
[361060467,1747224638878,-527.77,0.00014669,2]
[361060469,1747224638889,-151.0,0.0001467,2]
[361060471,1747224638900,-151.0,0.0001467,2]
[361060473,1747224638913,-151.0,0.0001467,2]
[361060475,1747224638924,-151.0,0.0001467,2]
[361060478,1747224638935,-151.0,0.0001467,2]
[361060480,1747224638946,-151.0,0.0001467,2]
[361060482,1747224638957,-151.0,0.0001467,2]
[361060484,1747224638970,-228.49,0.00014867,2]
[361060486,1747224638981,-400.0,0.00014867,2]
[361060489,1747224638992,-265.17,0.00014867,2]
[361060491,1747224639003,-285.5,0.00014867,2]
[361060493,1747224639014,-196.16,0.00014867,2]
[361060495,1747224639026,-323.09,0.00014867,2]
[361060498,1747224639038,-198.56,0.00014867,2]
[361060500,1747224639049,-400.0,0.00014867,2]
[361060502,1747224639060,-400.0,0.00014867,2]
[361060504,1747224639072,-515.62,0.00014867,2]
[361060506,1747224639083,-402.37866733,0.00014867,2]
[361060508,1747224639093,-400.0,0.00014867,2]
[361060510,1747224639103,-470.94205826,0.00014867,2]
[361060513,1747224639113,-400.0,0.00014867,2]
[361060515,1747224639124,-400.0,0.00014867,2]
[361060517,1747224639135,-290.17058502,0.00014891,2]
[361060519,1747224639145,-151.0,0.000149,2]
[361060521,1747224639157,-151.93309,0.000149,2]
[361060523,1747224639167,-1083.49616009,0.000149,2]
[361060526,1747224639179,-400.0,0.00014943,2]
[361060528,1747224639190,-168.92,0.00014943,2]
[361060530,1747224639203,-400.0,0.00014943,2]
[361060532,1747224639214,-400.0,0.00014943,2]
[361060534,1747224639225,-246.62,0.00014943,2]
[361060537,1747224639236,-274.26,0.00014943,2]
[361060539,1747224639248,-400.0,0.00014943,2]
[361060541,1747224639260,-400.0,0.00014943,2]
[361060543,1747224639272,-400.0,0.00014943,2]
[361060545,1747224639284,-400.0,0.00014943,2]
[361060548,1747224639296,-400.0,0.00014943,2]
[361060550,1747224639309,-400.0,0.00014943,2]
[361060552,1747224639321,-258.25,0.00014943,2]
[361060554,1747224639330,-400.0,0.00014943,2]
[361060556,1747224639341,-400.0,0.00014943,2]
[361060558,1747224639351,-245.467331,0.00014943,2]
[361060560,1747224639361,-377.0,0.00015068,30]
[361060562,1747224639372,-400.0,0.00015141,2]
[361060564,1747224639383,-400.0,0.00015141,2]
[361060566,1747224639393,-400.0,0.00015141,2]
[361060569,1747224639404,-400.0,0.00015141,2]
[361060571,1747224639415,-400.0,0.00015141,2]
[361060573,1747224639427,-334.97,0.00015141,2]
[361060576,1747224639440,-151.0,0.00015217,2]
[361060580,1747224639451,-151.0,0.00015217,2]
[361060583,1747224639463,-151.0,0.00015217,2]
[361060584,1747224639473,-151.0,0.00015217,2]
[361060586,1747224639483,-151.0,0.00015217,2]
[361060588,1747224639494,-322.23,0.00015217,2]
[361060591,1747224639504,-400.0,0.00015217,2]
[361060593,1747224639515,-400.0,0.00015217,2]
[361060595,1747224639526,-469.65,0.00015217,2]
[361060597,1747224639538,-400.0,0.00015217,2]
[361060599,1747224639549,-400.0,0.00015217,2]
[361060600,1747224639562,-400.0,0.00015217,2]
[361060601,1747224639573,-400.0,0.00015217,2]
[361060602,1747224639582,-400.0,0.00015217,2]
[361060603,1747224639592,-513.09,0.00015217,2]
[361060604,1747224639603,-151.0,0.00015217,2]
[361060605,1747224639613,-359.9,0.00015217,2]
[361060606,1747224639623,-151.0,0.00015217,2]
[361060607,1747224639634,-181.705882,0.00015217,2]
[361060608,1747224639645,-151.0,0.00015217,2]
[361060609,1747224639656,-181.705882,0.00015217,2]
[361060610,1747224639668,-151.0,0.00015217,2]
[361060611,1747224639680,-151.0,0.00015217,2]
[361060612,1747224639691,-500.0,0.00015239,2]
[361060613,1747224639703,-500.0,0.00015239,2]
[361060614,1747224639715,-500.0,0.00015239,2]
[361060615,1747224639727,-500.0,0.00015239,2]
[361060616,1747224639739,-500.0,0.00015239,2]
[361060617,1747224639750,-500.0,0.00015239,2]
[361060618,1747224639763,-500.0,0.00015239,2]
[361060619,1747224639773,-500.0,0.00015239,2]
[361060621,1747224639784,-500.0,0.00015239,2]
[361060622,1747224639794,-500.0,0.00015327,2]
[361060623,1747224639805,-505.67096782,0.00015327,2]
[361060625,1747224639816,-500.0,0.00015327,2]
[361060627,1747224639827,-500.0,0.00015327,2]
[361060629,1747224639838,-1083.49616008,0.00015348,2]
[361060631,1747224639849,-162.12,0.00015415,2]
[361060633,1747224639860,-400.0,0.00015415,2]
[361060635,1747224639872,-353.67,0.00015415,2]
[361060638,1747224639883,-350.4,0.00015415,2]
[361060640,1747224639893,-498.0,0.00015415,2]
[361060642,1747224639903,-400.0,0.00015491,2]
[361060644,1747224639914,-384.36,0.00015491,2]
[361060646,1747224639925,-400.0,0.00015491,2]
[361060648,1747224639935,-400.0,0.00015491,2]
[361060650,1747224639946,-400.0,0.00015491,2]
[361060652,1747224639956,-400.0,0.00015491,2]
[361060654,1747224639967,-400.0,0.00015491,2]
[361060656,1747224639978,-500.0,0.00015541,2]
[361060658,1747224639988,-500.0,0.00015541,2]
[361060660,1747224639999,-500.0,0.00015541,2]
[361060663,1747224640010,-290.17058502,0.00015561,2]
[361060664,1747224640021,-192.873438,0.00015669,2]
[361060666,1747224640032,-192.873438,0.00015669,2]
[361060669,1747224640042,-151.0,0.00015669,2]
[361060671,1747224640053,-282.00422,0.00015669,2]
[361060673,1747224640065,-400.0,0.00015669,2]
[361060675,1747224640075,-400.0,0.00015669,2]
[361060677,1747224640086,-400.0,0.00015669,2]
[361060679,1747224640097,-400.0,0.00015669,2]
[361060681,1747224640107,-400.0,0.00015669,2]
[361060682,1747224640118,-400.0,0.00015669,2]
[361060683,1747224640129,-151.0,0.00015669,2]
[361060684,1747224640139,-400.0,0.00015669,2]
[361060685,1747224640150,-400.0,0.00015669,2]
[361060686,1747224640161,-400.0,0.00015669,2]
[361060687,1747224640171,-400.0,0.00015669,2]
[361060688,1747224640182,-1000.0,0.00015669,2]
[361060689,1747224640193,-400.0,0.00015669,2]
[361060690,1747224640204,-178.336764,0.00015669,2]
[361060691,1747224640215,-404.131592,0.00015669,2]
[361060693,1747224640226,-441.25,0.00015669,2]
[361060695,1747224640236,-400.0,0.00015669,2]
[361060697,1747224640246,-426.52,0.00015669,2]
[361060699,1747224640256,-517.04,0.00015669,2]
[361060702,1747224640267,-400.0,0.00015669,2]
[361060704,1747224640277,-400.0,0.00015669,2]
[361060706,1747224640288,-400.0,0.00015669,2]
[361060708,1747224640300,-400.48073003,0.00015669,2]
[361060710,1747224640312,-401.18063997,0.00015669,2]
[361060712,1747224640322,-400.0,0.00015669,2]
[361060714,1747224640332,-400.06,0.00015669,2]
[361060716,1747224640343,-400.0,0.00015669,2]
[361060718,1747224640354,-260.80596274,0.00015669,2]
[361060720,1747224640365,-353.07328591,0.00015669,2]
[361060722,1747224640376,-406.61262494,0.00015669,2]
[361060724,1747224640386,-463.17766989,0.00015669,2]
[361060726,1747224640397,-400.0864992,0.00015669,2]
[361060727,1747224640407,-400.0,0.00015669,2]